[Event "Championnat du monde jeunes U12"]
[Date "2024.11.26"]
[White "Vinales Gonzalez, Enzo Mathias"]
[Black "Filindash, Nikita"]
[WhiteElo "1903"]
[BlackElo "2076"]
[Round "11.27"]
[Result "1/2-1/2"]
[TimeControl "5400+30"]

1. e4 {[%clk 1:30:58]} 1... e5 {[%clk 1:30:55]} 2. Nf3 {[%clk 1:31:19]} 2... Nf6
{[%clk 1:31:19]} 3. Nxe5 {[%clk 1:31:46]} 3... d6 {[%clk 1:31:42]} 4. Nf3 {[%clk
1:32:13]} 4... Nxe4 {[%clk 1:32:06]} 5. d4 d5 {[%clk 1:32:28]} 6. Bd3 {[%clk
1:33:03]} 6... Bd6 {[%clk 1:32:54]} 7. O-O {[%clk 1:33:26]} 7... O-O {[%clk
1:33:21]} 8. c4 {[%clk 1:33:41]} 8... c6 {[%clk 1:33:50]} 9. Nc3 {[%clk
1:34:06]} 9... Nxc3 {[%clk 1:34:15]} 10. bxc3 {[%clk 1:34:32]} 10... dxc4 {[%clk
1:34:38]} 11. Bxc4 {[%clk 1:34:34]} 11... Bf5 {[%clk 1:35:07]} 12. Bd3 {[%clk
1:34:07]} 12... Bxd3 {[%clk 1:35:23]} 13. Qxd3 {[%clk 1:34:31]} 13... Nd7 {[%clk
1:35:39]} 14. g3 {[%clk 1:34:22]} 14... h6 {[%clk 1:34:12]} 15. c4 {[%clk
1:33:42]} 15... Nf6 {[%clk 1:32:40]} 16. Qf5 {[%clk 1:30:53]} 16... Re8 {[%clk
1:29:31]} 17. Rb1 {[%clk 1:26:16]} 17... b6 {[%clk 1:25:18]} 18. Ne5 {[%clk
1:24:31]} 18... Qc8 {[%clk 1:16:38]} 19. Qxc8 {[%clk 1:21:23]} 19... Raxc8
{[%clk 1:17:02]} 20. Nd3 {[%clk 1:04:25]} 20... Re4 {[%clk 0:52:27]} 21. Be3
{[%clk 0:58:32]} 21... Ng4 {[%clk 0:51:16]} 22. Rfe1 {[%clk 0:58:42]} 22... Kf8
{[%clk 0:42:39]} 23. Re2 {[%clk 0:49:13]} 23... Be7 {[%clk 0:26:17]} 24. Rbe1
{[%clk 0:44:00]} 24... Re8 {[%clk 0:20:08]} 25. h3 {[%clk 0:42:31]} 25... Nxe3
{[%clk 0:20:27]} 26. Rxe3 {[%clk 0:42:55]} 26... Rxd4 {[%clk 0:12:55]} 27. Ne5
{[%clk 0:41:40]} 27... Rd6 {[%clk 0:13:16]} 28. f4 {[%clk 0:30:47]} 28... a5
{[%clk 0:13:33]} 29. a4 {[%clk 0:29:25]} 29... Kg8 {[%clk 0:09:51]} 30. Nf3
{[%clk 0:09:44]} 30... Re6 {[%clk 0:06:02]} 31. Rxe6 {[%clk 0:10:02]} 31... Bc5+
{[%clk 0:06:29]} 32. Kf1 {[%clk 0:08:35]} 32... Rxe6 {[%clk 0:06:35]} 33. Rxe6
{[%clk 0:07:17]} 33... fxe6 {[%clk 0:07:04]} 34. Ke2 {[%clk 0:07:03]} 34... Bd6
{[%clk 0:06:04]} 35. Ke3 {[%clk 0:06:33]} 35... Kf7 {[%clk 0:06:27]} 36. Ke4
{[%clk 0:04:25]} 36... Ke7 {[%clk 0:06:45]} 37. Nd4 {[%clk 0:04:42]} 37... Kd7
{[%clk 0:07:02]} 38. g4 {[%clk 0:03:25]} 38... Be7 {[%clk 0:05:57]} 39. Nb3
{[%clk 0:01:28]} 39... Bf6 {[%clk 0:02:30]} 40. c5 {[%clk 0:01:05]} 40... Kc7
{[%clk 0:01:51]} 41. h4 {[%clk 0:00:47]} 41... Bxh4 {[%clk 0:01:01]} 42. Nd4
{[%clk 0:00:43]} 42... Bf6 {[%clk 0:01:16]} 43. Nxe6+ {[%clk 0:01:01]} 43... Kb7
{[%clk 0:01:41]} 44. g5 {[%clk 0:01:24]} 44... hxg5 {[%clk 0:02:02]} 45. fxg5
{[%clk 0:01:45]} 45... Bb2 {[%clk 0:00:53]} 46. cxb6 {[%clk 0:01:34]} 46... Kxb6
{[%clk 0:01:18]} 47. Kd3 {[%clk 0:01:39]} 47... g6 {[%clk 0:00:34]} 48. Kc4
{[%clk 0:01:30]} 48... Bc1 {[%clk 0:00:40]} 49. Nf8 {[%clk 0:01:34]} 49... Bxg5
{[%clk 0:01:01]} 50. Nxg6 {[%clk 0:01:59]} 50... Be3 {[%clk 0:01:04]} 51. Kd3
{[%clk 0:01:05]} 51... Bg1 {[%clk 0:00:43]} 52. Kc4 {[%clk 0:01:30]} 52... Kc7
{[%clk 0:00:58]} 53. Nf4 {[%clk 0:01:43]} 53... Kd6 {[%clk 0:01:17]} 54. Nd3
{[%clk 0:02:09]} 54... Be3 {[%clk 0:01:28]} 55. Nb2 {[%clk 0:02:11]} 55... Bd2
{[%clk 0:00:34]} 56. Kd4 {[%clk 0:02:03]} 56... Bb4 {[%clk 0:00:54]} 57. Nd3
{[%clk 0:01:59]} 57... Bd2 {[%clk 0:00:42]} 58. Kc4 {[%clk 0:02:05]} 58... Be3
{[%clk 0:00:55]} 59. Nb2 {[%clk 0:02:15]} 59... Bg5 {[%clk 0:00:50]} 60. Nd3
{[%clk 0:02:35]} 60... Be3 {[%clk 0:00:54]} 1/2-1/2

[Variant "Standard"]
[Site "Europe Echecs"]

[Event "Championnat du monde jeunes U12"]
[Date "2024.11.26"]
[White "Bocquenet-Drouode, Hugo"]
[Black "Mai, Duc Kien"]
[WhiteElo "2002"]
[BlackElo "1771"]
[Round "11.28"]
[Result "1/2-1/2"]
[TimeControl "5400+30"]

1. d4 {[%clk 1:30:57]} 1... Nf6 {[%clk 1:30:43]} 2. Nc3 {[%clk 1:31:13]} 2... d5
{[%clk 1:31:03]} 3. Bf4 {[%clk 1:31:37]} 3... e6 {[%clk 1:28:18]} 4. Nb5 {[%clk
1:31:58]} 4... Na6 {[%clk 1:28:43]} 5. e3 {[%clk 1:32:16]} 5... c6 {[%clk
1:28:52]} 6. Nc3 {[%clk 1:32:38]} 6... Bd6 {[%clk 1:28:16]} 7. Bxd6 {[%clk
1:32:31]} 7... Qxd6 {[%clk 1:28:39]} 8. Bxa6 {[%clk 1:32:58]} 8... bxa6 {[%clk
1:29:06]} 9. Na4 {[%clk 1:32:42]} 9... e5 {[%clk 1:28:02]} 10. dxe5 {[%clk
1:32:10]} 10... Qxe5 {[%clk 1:28:26]} 11. Nf3 {[%clk 1:32:01]} 11... Qd6 {[%clk
1:28:34]} 12. Qd4 {[%clk 1:30:13]} 12... O-O {[%clk 1:25:27]} 13. O-O {[%clk
1:29:22]} 13... Bg4 {[%clk 1:21:30]} 14. Ne5 {[%clk 1:26:40]} 14... Bf5 {[%clk
1:19:19]} 15. Rac1 {[%clk 1:12:43]} 15... Rfe8 {[%clk 1:09:08]} 16. Nd3 {[%clk
0:53:21]} 16... Nd7 {[%clk 0:57:46]} 17. Nac5 {[%clk 0:48:44]} 17... Rac8 {[%clk
0:46:32]} 18. Nxd7 {[%clk 0:46:02]} 18... Bxd7 {[%clk 0:43:55]} 19. b4 {[%clk
0:39:03]} 19... a5 {[%clk 0:42:58]} 20. a3 {[%clk 0:35:31]} 20... axb4 {[%clk
0:37:20]} 21. axb4 {[%clk 0:35:01]} 21... Rc7 {[%clk 0:36:34]} 22. Nc5 {[%clk
0:30:57]} 22... Qe5 {[%clk 0:30:59]} 23. Rfd1 {[%clk 0:27:41]} 23... Qxd4 {[%clk
0:26:33]} 24. Rxd4 {[%clk 0:26:44]} 24... Be6 {[%clk 0:26:58]} 25. Ra1 {[%clk
0:26:44]} 25... Kf8 {[%clk 0:25:56]} 26. Ra5 {[%clk 0:26:00]} 26... Ke7 {[%clk
0:24:04]} 27. Rd1 {[%clk 0:24:50]} 27... h6 {[%clk 0:21:00]} 28. Rda1 Ra8 {[%clk
0:21:22]} 29. c3 {[%clk 0:24:00]} 29... Kd6 {[%clk 0:21:32]} 30. Nb3 {[%clk
0:23:52]} 30... Bd7 {[%clk 0:16:51]} 31. Rc5 {[%clk 0:22:50]} 31... g6 {[%clk
0:15:43]} 32. Nd4 {[%clk 0:23:12]} 32... Rb8 {[%clk 0:14:02]} 33. Kf1 {[%clk
0:17:08]} 33... Rbb7 {[%clk 0:13:23]} 34. Nb3 {[%clk 0:14:33]} 34... Rb5 {[%clk
0:13:03]} 35. h3 {[%clk 0:13:17]} 35... Rxc5 {[%clk 0:13:21]} 36. Nxc5 {[%clk
0:13:32]} 36... h5 {[%clk 0:13:29]} 37. Ke2 {[%clk 0:12:34]} 37... Bf5 {[%clk
0:13:30]} 38. Ra5 {[%clk 0:10:23]} 38... Re7 {[%clk 0:13:16]} 39. Nb3 {[%clk
0:10:11]} 39... Rc7 {[%clk 0:12:51]} 40. Nd4 {[%clk 0:10:25]} 40... Bd7 {[%clk
0:12:45]} 41. Ra6 {[%clk 0:09:50]} 41... Ke7 {[%clk 0:10:40]} 42. Nb3 {[%clk
0:08:11]} 42... c5 {[%clk 0:09:24]} 43. Ra5 {[%clk 0:08:03]} 43... cxb4 {[%clk
0:09:23]} 44. cxb4 {[%clk 0:08:21]} 44... Kd6 {[%clk 0:07:12]} 45. Nd4 {[%clk
0:06:55]} 45... Rb7 {[%clk 0:06:49]} 46. Ra6+ {[%clk 0:07:05]} 46... Ke7 {[%clk
0:06:40]} 47. Kf3 {[%clk 0:06:50]} 47... Rxb4 {[%clk 0:06:31]} 48. Rxa7 {[%clk
0:07:15]} 48... Kd6 {[%clk 0:06:46]} 49. Ra6+ {[%clk 0:07:30]} 49... Ke7 {[%clk
0:06:57]} 50. g4 {[%clk 0:07:06]} 50... hxg4+ {[%clk 0:07:09]} 51. hxg4 {[%clk
0:07:30]} 51... g5 {[%clk 0:06:19]} 52. Rh6 {[%clk 0:05:28]} 52... Rb1 {[%clk
0:06:03]} 53. Rh5 {[%clk 0:05:14]} 53... Kf6 {[%clk 0:06:23]} 54. Rh6+ {[%clk
0:04:04]} 54... Ke7 {[%clk 0:06:46]} 55. Ne2 {[%clk 0:04:23]} 55... Rb4 {[%clk
0:06:57]} 56. Nd4 {[%clk 0:04:25]} 56... Rb1 {[%clk 0:07:21]} 57. Nc6+ {[%clk
0:03:23]} 57... Bxc6 {[%clk 0:07:24]} 58. Rxc6 {[%clk 0:03:47]} 58... Rb3 {[%clk
0:07:24]} 59. Ra6 {[%clk 0:03:53]} 59... d4 {[%clk 0:07:05]} 60. Ra5 {[%clk
0:04:06]} 60... dxe3 {[%clk 0:07:25]} 61. fxe3 {[%clk 0:04:07]} 61... Kf6 {[%clk
0:07:43]} 62. Rf5+ {[%clk 0:04:21]} 62... Kg6 {[%clk 0:08:02]} 63. Rd5 {[%clk
0:04:33]} 63... Rb4 {[%clk 0:08:03]} 64. Rd4 {[%clk 0:04:25]} 64... Rxd4 {[%clk
0:07:39]} 65. exd4 {[%clk 0:04:49]} 65... f5 {[%clk 0:08:07]} 66. gxf5+ {[%clk
0:04:38]} 66... Kxf5 {[%clk 0:08:30]} 67. Ke3 {[%clk 0:04:54]} 67... g4 {[%clk
0:08:54]} 68. d5 {[%clk 0:05:09]} 68... Ke5 {[%clk 0:09:22]} 69. d6 {[%clk
0:05:34]} 69... Kxd6 {[%clk 0:09:48]} 70. Kf4 {[%clk 0:06:01]} 70... Ke6 {[%clk
0:10:13]} 71. Kxg4 {[%clk 0:06:22]} 71... Ke5 {[%clk 0:09:48]} 1/2-1/2

[Variant "Standard"]
[Site "Europe Echecs"]

[Event "Championnat du monde jeunes U12"]
[Date "2024.11.26"]
[White "Radnaev, Leo"]
[Black "Dauren, Darmen"]
[WhiteElo "1990"]
[BlackElo "1820"]
[Round "11.29"]
[Result "0-1"]
[TimeControl "5400+30"]

1. e4 {[%clk 1:31:00]} 1... c6 {[%clk 1:30:54]} 2. d4 {[%clk 1:31:23]} 2... d5
{[%clk 1:31:20]} 3. exd5 {[%clk 1:31:48]} 3... cxd5 {[%clk 1:31:49]} 4. Bd3
{[%clk 1:32:09]} 4... Nc6 {[%clk 1:32:14]} 5. c3 {[%clk 1:32:35]} 5... Qc7
{[%clk 1:32:41]} 6. h3 {[%clk 1:32:29]} 6... g6 {[%clk 1:32:24]} 7. Nf3 {[%clk
1:31:42]} 7... Bf5 {[%clk 1:32:19]} 8. Bxf5 {[%clk 1:23:07]} 8... gxf5 {[%clk
1:32:47]} 9. Bg5 {[%clk 1:21:40]} 9... e6 {[%clk 1:30:50]} 10. Qc1 {[%clk
1:18:47]} 10... Bd6 {[%clk 1:26:26]} 11. O-O {[%clk 1:16:11]} 11... Nge7 {[%clk
1:26:08]} 12. Ne1 {[%clk 1:10:13]} 12... O-O-O {[%clk 1:22:50]} 13. Nd3 {[%clk
1:08:35]} 13... Rhg8 {[%clk 1:22:55]} 14. Kh1 {[%clk 1:02:49]} 14... Rde8 {[%clk
1:11:54]} 15. Na3 {[%clk 0:56:56]} 15... a6 {[%clk 1:10:26]} 16. b4 {[%clk
0:56:38]} 16... b6 {[%clk 1:07:11]} 17. Bf4 {[%clk 0:54:09]} 17... Bxf4 {[%clk
1:01:05]} 18. Nxf4 {[%clk 0:53:20]} 18... Na7 {[%clk 1:00:08]} 19. Qd2 {[%clk
0:49:09]} 19... Kb7 {[%clk 0:59:24]} 20. Rfc1 {[%clk 0:49:11]} 20... Nb5 {[%clk
0:54:08]} 21. Nb1 {[%clk 0:46:39]} 21... Nd6 {[%clk 0:52:50]} 22. Nd3 {[%clk
0:34:55]} 22... Rg6 {[%clk 0:45:27]} 23. Qf4 {[%clk 0:27:44]} 23... Nc4 {[%clk
0:45:02]} 24. Qxc7+ {[%clk 0:27:21]} 24... Kxc7 {[%clk 0:45:31]} 25. Rd1 {[%clk
0:24:01]} 25... Nc8 {[%clk 0:44:42]} 26. Nd2 {[%clk 0:22:09]} 26... N8d6 {[%clk
0:44:46]} 27. Nxc4 {[%clk 0:20:33]} 27... Nxc4 {[%clk 0:45:12]} 28. g3 {[%clk
0:20:41]} 28... Ra8 {[%clk 0:39:55]} 29. a4 {[%clk 0:15:50]} 29... a5 {[%clk
0:40:01]} 30. Rdb1 {[%clk 0:15:40]} 30... Rgg8 {[%clk 0:40:13]} 31. Kg2 {[%clk
0:08:02]} 31... Ra7 {[%clk 0:38:26]} 32. Ne5 {[%clk 0:07:30]} 32... Nxe5 {[%clk
0:37:45]} 33. dxe5 {[%clk 0:07:59]} 33... Rc8 {[%clk 0:32:11]} 34. Ra3 {[%clk
0:07:36]} 34... Kb7 {[%clk 0:27:44]} 35. Kf3 {[%clk 0:07:11]} 35... Rc4 {[%clk
0:26:48]} 36. bxa5 {[%clk 0:02:31]} 36... Rxa5 {[%clk 0:26:48]} 37. Rab3 {[%clk
0:02:59]} 37... Rc6 {[%clk 0:27:00]} 38. Ra1 {[%clk 0:03:18]} 38... Rac5 {[%clk
0:26:24]} 39. Raa3 {[%clk 0:03:34]} 39... Ka6 {[%clk 0:26:32]} 40. Ke3 {[%clk
0:03:09]} 40... Rc4 {[%clk 0:26:41]} 41. f3 {[%clk 0:03:31]} 41... h5 {[%clk
0:25:25]} 42. Kd3 {[%clk 0:02:45]} 42... h4 {[%clk 0:25:08]} 43. g4 {[%clk
0:02:32]} 43... fxg4 {[%clk 0:25:21]} 44. hxg4 {[%clk 0:03:02]} 44... Rf4 {[%clk
0:20:40]} 45. Ke3 {[%clk 0:02:28]} 45... Rfc4 {[%clk 0:19:27]} 46. Kd3 {[%clk
0:02:55]} 46... f6 {[%clk 0:08:01]} 47. exf6 {[%clk 0:02:45]} 47... Rf4 {[%clk
0:08:21]} 48. Ke3 {[%clk 0:02:34]} 48... e5 {[%clk 0:08:29]} 49. g5 {[%clk
0:01:55]} 49... Rf5 {[%clk 0:08:37]} 50. Rb4 {[%clk 0:01:32]} 50... Rxg5 {[%clk
0:08:36]} 51. Rxh4 {[%clk 0:01:16]} 51... Rxf6 {[%clk 0:08:50]} 52. Rh3 {[%clk
0:00:34]} 52... Rf4 {[%clk 0:08:57]} 53. Ra2 {[%clk 0:00:33]} 53... Rc4 {[%clk
0:09:00]} 54. Kd3 {[%clk 0:00:36]} 54... Rf5 {[%clk 0:08:13]} 55. Rb2 {[%clk
0:00:33]} 55... Rxf3+ {[%clk 0:07:53]} 56. Rxf3 {[%clk 0:00:54]} 56... e4+
{[%clk 0:08:22]} 57. Ke2 {[%clk 0:00:37]} 57... exf3+ {[%clk 0:08:47]} 58. Kxf3
{[%clk 0:01:06]} 58... Rxc3+ {[%clk 0:08:43]} 59. Ke2 {[%clk 0:01:33]} 59... Rc4
{[%clk 0:08:26]} 60. Rb5 {[%clk 0:00:37]} 60... d4 {[%clk 0:08:12]} 61. Kd3
{[%clk 0:00:37]} 61... Rxa4 {[%clk 0:08:32]} 62. Rd5 {[%clk 0:01:02]} 62... b5
{[%clk 0:08:48]} 63. Rd8 {[%clk 0:01:04]} 63... Ka5 {[%clk 0:09:03]} 64. Rb8
{[%clk 0:01:24]} 64... Rc4 {[%clk 0:09:08]} 65. Ra8+ {[%clk 0:01:51]} 65... Kb4
{[%clk 0:09:31]} 66. Ra1 {[%clk 0:02:17]} 66... Kc5 {[%clk 0:09:55]} 67. Ra8
{[%clk 0:02:43]} 67... Rc3+ {[%clk 0:10:20]} 68. Kd2 {[%clk 0:03:13]} 68... b4
{[%clk 0:09:35]} 69. Rd8 {[%clk 0:03:28]} 69... Kc4 {[%clk 0:09:59]} 70. Rc8+
{[%clk 0:03:49]} 70... Kb3 {[%clk 0:10:24]} 71. Rd8 {[%clk 0:04:11]} 71... d3
{[%clk 0:10:01]} 72. Rd4 {[%clk 0:04:40]} 72... Ka3 {[%clk 0:09:54]} 73. Re4
{[%clk 0:04:26]} 73... Rc8 {[%clk 0:08:45]} 74. Kxd3 {[%clk 0:02:37]} 74... b3
{[%clk 0:09:10]} 75. Re7 {[%clk 0:02:46]} 75... Ka2 {[%clk 0:09:11]} 76. Ra7+
{[%clk 0:01:02]} 76... Kb1 {[%clk 0:09:35]} 77. Kd2 {[%clk 0:01:27]} 77... b2
{[%clk 0:09:57]} 78. Ra6 {[%clk 0:01:17]} 78... Rd8+ {[%clk 0:09:58]} 79. Ke2
{[%clk 0:01:38]} 79... Rd5 {[%clk 0:10:17]} 80. Ke3 {[%clk 0:00:58]} 80... Kc2
{[%clk 0:10:12]} 81. Rc6+ {[%clk 0:01:19]} 81... Kb3 {[%clk 0:10:36]} 82. Rb6+
{[%clk 0:01:40]} 82... Kc3 {[%clk 0:11:00]} 83. Ke2 {[%clk 0:01:52]} 83... Rd4
{[%clk 0:11:11]} 84. Rc6+ {[%clk 0:01:56]} 84... Rc4 {[%clk 0:11:35]} 85. Rb6
{[%clk 0:02:20]} 85... Rb4 {[%clk 0:11:57]} 86. Rc6+ {[%clk 0:02:45]} 86... Kb3
{[%clk 0:12:24]} 87. Rd6 {[%clk 0:03:02]} 87... b1=Q {[%clk 0:12:47]} 88. Rd3+
{[%clk 0:03:29]} 88... Ka4 {[%clk 0:13:07]} 89. Kd2 {[%clk 0:03:53]} 89... Rb2+
{[%clk 0:13:16]} 90. Ke3 {[%clk 0:04:18]} 90... Qe1+ {[%clk 0:13:40]} 91. Kd4
{[%clk 0:04:45]} 91... Rb4+ {[%clk 0:14:06]} 92. Kd5 {[%clk 0:05:11]} 92... Qe4+
{[%clk 0:14:31]} 93. Kc5 {[%clk 0:05:37]} 93... Qxd3 {[%clk 0:14:22]} 94. Kc6
{[%clk 0:06:03]} 94... Ka5 {[%clk 0:14:46]} 95. Kc7 {[%clk 0:06:28]} 95... Ka6
{[%clk 0:15:11]} 96. Kc8 {[%clk 0:06:47]} 96... Ka7 {[%clk 0:15:36]} 97. Kc7
{[%clk 0:07:13]} 97... Rc4# {[%clk 0:16:01]} 0-1

[Variant "Standard"]
[Site "Europe Echecs"]

[Event "Championnat du monde jeunes U12"]
[Date "2024.11.26"]
[White "Farzaleev, Daniyar"]
[Black "El Zein, Bassam"]
[WhiteElo "1622"]
[BlackElo "1947"]
[Round "11.30"]
[Result "0-1"]
[TimeControl "5400+30"]

1. d4 {[%clk 1:30:57]} 1... d5 {[%clk 1:30:53]} 2. Nf3 {[%clk 1:31:21]} 2... Nc6
{[%clk 1:31:17]} 3. g3 {[%clk 1:31:48]} 3... Bf5 {[%clk 1:31:40]} 4. Bg2 {[%clk
1:31:44]} 4... Nb4 {[%clk 1:32:01]} 5. Na3 {[%clk 1:32:06]} 5... e6 {[%clk
1:32:27]} 6. O-O {[%clk 1:30:42]} 6... Nc6 {[%clk 1:32:49]} 7. b3 {[%clk
1:25:16]} 7... Nf6 {[%clk 1:31:36]} 8. c4 {[%clk 1:25:00]} 8... Be4 {[%clk
1:31:50]} 9. Bb2 {[%clk 1:23:58]} 9... Be7 {[%clk 1:31:05]} 10. Nb5 {[%clk
1:18:28]} 10... Ng4 {[%clk 1:27:39]} 11. cxd5 {[%clk 1:17:03]} 11... exd5 {[%clk
1:27:54]} 12. h3 {[%clk 1:16:13]} 12... Nh6 {[%clk 1:27:53]} 13. Nc3 {[%clk
1:15:25]} 13... f5 {[%clk 1:28:12]} 14. Ne1 {[%clk 1:13:11]} 14... Bxg2 {[%clk
1:27:37]} 15. Nxg2 {[%clk 1:13:38]} 15... Bf6 {[%clk 1:27:53]} 16. e3 {[%clk
1:08:26]} 16... Ne7 {[%clk 1:26:44]} 17. Nf4 {[%clk 1:07:58]} 17... Qd7 {[%clk
1:26:17]} 18. Qe2 {[%clk 1:02:37]} 18... c6 {[%clk 1:25:06]} 19. Na4 {[%clk
1:02:17]} 19... b6 {[%clk 1:24:57]} 20. Ba3 {[%clk 1:01:14]} 20... O-O {[%clk
1:24:48]} 21. Rac1 {[%clk 0:59:57]} 21... Rac8 {[%clk 1:23:51]} 22. Rc2 {[%clk
0:59:50]} 22... Rc7 {[%clk 1:22:52]} 23. Rfc1 {[%clk 0:58:58]} 23... Rfc8 {[%clk
1:21:28]} 24. Nb2 {[%clk 0:54:27]} 24... Ng6 {[%clk 1:20:06]} 25. Nxg6 {[%clk
0:53:49]} 25... hxg6 {[%clk 1:20:34]} 26. Nd3 {[%clk 0:53:37]} 26... Nf7 {[%clk
1:19:49]} 27. Kg2 {[%clk 0:50:42]} 27... Re8 {[%clk 1:18:36]} 28. Qd1 {[%clk
0:49:14]} 28... Ng5 {[%clk 1:18:06]} 29. Bb2 {[%clk 0:45:47]} 29... Qe6 {[%clk
1:17:51]} 30. Ne5 {[%clk 0:27:53]} 30... Bxe5 {[%clk 1:14:56]} 31. dxe5 {[%clk
0:28:21]} 31... Rd8 {[%clk 1:14:35]} 32. b4 {[%clk 0:27:36]} 32... d4 {[%clk
1:07:43]} 33. exd4 {[%clk 0:22:21]} 33... Qxa2 {[%clk 1:07:38]} 34. h4 {[%clk
0:22:04]} 34... Qd5+ {[%clk 1:07:52]} 35. f3 {[%clk 0:21:13]} 35... Ne6 {[%clk
1:08:12]} 36. Qf1 {[%clk 0:19:21]} 36... b5 {[%clk 1:06:57]} 37. Qf2 {[%clk
0:18:58]} 37... Rdc8 {[%clk 1:04:42]} 38. Qe3 {[%clk 0:18:10]} 38... Rf7 {[%clk
1:03:51]} 39. Kh3 {[%clk 0:15:36]} 39... g5 {[%clk 0:57:16]} 40. f4 {[%clk
0:15:19]} 40... gxf4 {[%clk 0:57:17]} 41. gxf4 {[%clk 0:15:48]} 41... Qe4 {[%clk
0:54:58]} 42. Qxe4 {[%clk 0:12:21]} 42... fxe4 {[%clk 0:55:21]} 43. Re1 {[%clk
0:07:22]} 43... Nxf4+ {[%clk 0:55:11]} 44. Kh2 {[%clk 0:07:51]} 44... Nd3 {[%clk
0:55:00]} 45. Rxe4 {[%clk 0:08:15]} 45... Nxb4 {[%clk 0:55:25]} 46. Rg2 {[%clk
0:08:04]} 46... Nd5 {[%clk 0:55:34]} 47. Bc1 {[%clk 0:07:54]} 47... Re7 {[%clk
0:55:30]} 48. Reg4 {[%clk 0:07:44]} 48... Rcc7 {[%clk 0:55:17]} 49. h5 {[%clk
0:05:33]} 49... c5 {[%clk 0:50:24]} 50. Bg5 {[%clk 0:04:18]} 50... Re6 {[%clk
0:50:06]} 51. dxc5 {[%clk 0:04:14]} 51... Rxe5 {[%clk 0:49:42]} 52. h6 {[%clk
0:04:19]} 52... Kh7 {[%clk 0:48:39]} 53. Rh4 {[%clk 0:04:37]} 53... g6 {[%clk
0:49:04]} 54. Bd8 {[%clk 0:03:49]} 54... Rxc5 {[%clk 0:48:58]} 55. Ba5 {[%clk
0:03:18]} 55... Ne3 {[%clk 0:48:12]} 56. Rf2 {[%clk 0:03:13]} 56... Nf5 {[%clk
0:48:22]} 57. Rh3 {[%clk 0:03:40]} 57... Rc4 {[%clk 0:48:08]} 58. Rd2 {[%clk
0:03:45]} 58... Re7 {[%clk 0:48:15]} 59. Bd8 {[%clk 0:03:57]} 59... Rf7 {[%clk
0:48:17]} 60. Bf6 {[%clk 0:03:48]} 60... Rc6 {[%clk 0:47:56]} 61. Bb2 {[%clk
0:03:43]} 61... Rfc7 {[%clk 0:47:31]} 0-1

[Variant "Standard"]
[Site "Europe Echecs"]

[Event "Championnat du monde jeunes U12"]
[Date "2024.11.26"]
[White "Matejka, Simon"]
[Black "Le, Anh Tu"]
[WhiteElo "1924"]
[BlackElo "1812"]
[Round "11.31"]
[Result "0-1"]
[TimeControl "5400+30"]

1. e4 {[%clk 1:30:46]} 1... c5 {[%clk 1:30:51]} 2. Nf3 {[%clk 1:31:07]} 2... d6
{[%clk 1:31:18]} 3. c3 {[%clk 1:30:07]} 3... Nf6 {[%clk 1:31:18]} 4. Be2 {[%clk
1:30:29]} 4... g6 {[%clk 1:31:35]} 5. Qc2 {[%clk 1:29:14]} 5... Bg7 {[%clk
1:31:44]} 6. h3 {[%clk 1:28:34]} 6... O-O {[%clk 1:32:06]} 7. d4 {[%clk
1:28:53]} 7... cxd4 {[%clk 1:31:02]} 8. cxd4 {[%clk 1:29:15]} 8... Nc6 {[%clk
1:26:39]} 9. Nc3 {[%clk 1:27:44]} 9... d5 {[%clk 1:24:05]} 10. e5 {[%clk
1:27:23]} 10... Ne4 {[%clk 1:23:59]} 11. Be3 {[%clk 1:25:02]} 11... Bf5 {[%clk
1:21:44]} 12. Qb3 {[%clk 1:24:02]} 12... Rc8 {[%clk 1:11:17]} 13. O-O {[%clk
1:17:18]} 13... Nxc3 {[%clk 1:07:25]} 14. bxc3 {[%clk 1:17:24]} 14... Na5 {[%clk
1:07:02]} 15. Qb2 {[%clk 1:16:39]} 15... Qb6 {[%clk 1:07:19]} 16. Qxb6 {[%clk
1:16:43]} 16... axb6 {[%clk 1:07:47]} 17. Bd2 {[%clk 1:16:19]} 17... Nc4 {[%clk
1:07:36]} 18. Bxc4 {[%clk 1:15:32]} 18... Rxc4 {[%clk 1:08:05]} 19. g4 {[%clk
1:13:06]} 19... Bd3 {[%clk 1:06:16]} 20. Rfc1 {[%clk 1:13:27]} 20... Ra4 {[%clk
1:06:41]} 21. Ne1 {[%clk 1:12:04]} 21... Bc4 {[%clk 1:06:58]} 22. Rcb1 {[%clk
1:12:18]} 22... b5 {[%clk 1:07:11]} 23. Nc2 {[%clk 1:11:41]} 23... f6 {[%clk
1:05:51]} 24. exf6 {[%clk 1:07:44]} 24... Bxf6 {[%clk 1:06:09]} 25. g5 {[%clk
1:07:51]} 25... Bg7 {[%clk 1:06:27]} 26. Nb4 {[%clk 1:06:27]} 26... e5 {[%clk
1:05:39]} 27. dxe5 {[%clk 1:03:42]} 27... Bxe5 {[%clk 1:05:58]} 28. Re1 {[%clk
1:04:02]} 28... Bg7 {[%clk 1:04:27]} 29. Nc2 {[%clk 1:00:42]} 29... Bxa2 {[%clk
1:00:10]} 30. Re7 {[%clk 0:58:01]} 30... Bb3 {[%clk 0:58:11]} 31. Rxa4 {[%clk
0:57:27]} 31... bxa4 {[%clk 0:58:29]} 32. Nd4 {[%clk 0:55:05]} 32... Ra8 {[%clk
0:52:37]} 33. Rxb7 {[%clk 0:50:39]} 33... Bc4 {[%clk 0:52:10]} 34. Nc2 {[%clk
0:43:35]} 34... a3 {[%clk 0:52:18]} 35. Bc1 {[%clk 0:43:45]} 35... a2 {[%clk
0:52:37]} 36. Bb2 {[%clk 0:43:51]} 36... Re8 {[%clk 0:52:41]} 37. Ne3 {[%clk
0:42:49]} 37... Ra8 {[%clk 0:52:53]} 38. Nc2 {[%clk 0:39:01]} 38... Bd3 {[%clk
0:52:07]} 39. Na1 {[%clk 0:38:24]} 39... Re8 {[%clk 0:50:40]} 40. Kg2 {[%clk
0:37:03]} 40... d4 {[%clk 0:49:08]} 41. Ra7 {[%clk 0:34:53]} 41... dxc3 {[%clk
0:49:08]} 42. Bxc3 {[%clk 0:30:49]} 42... Bxc3 {[%clk 0:49:35]} 43. Rxa2 {[%clk
0:31:11]} 43... Be4+ {[%clk 0:49:26]} 44. f3 {[%clk 0:30:37]} 44... Ra8 {[%clk
0:49:38]} 45. Rxa8+ {[%clk 0:31:01]} 45... Bxa8 {[%clk 0:50:00]} 46. Nc2 {[%clk
0:31:20]} 46... Kf7 {[%clk 0:50:14]} 47. Ne3 {[%clk 0:31:29]} 47... Ke6 {[%clk
0:50:40]} 48. Kg3 {[%clk 0:30:37]} 48... Bd2 {[%clk 0:50:54]} 49. Nc2 {[%clk
0:30:10]} 49... Bxg5 {[%clk 0:51:10]} 50. Nd4+ {[%clk 0:30:29]} 50... Ke5 {[%clk
0:51:36]} 51. Ne2 {[%clk 0:30:40]} 51... Bd2 {[%clk 0:51:52]} 52. h4 {[%clk
0:30:39]} 52... Bd5 {[%clk 0:52:15]} 53. f4+ {[%clk 0:30:05]} 53... Ke4 {[%clk
0:52:34]} 54. h5 {[%clk 0:30:12]} 54... gxh5 {[%clk 0:51:44]} 55. Kh4 {[%clk
0:30:07]} 55... Bf7 {[%clk 0:50:33]} 56. Ng3+ {[%clk 0:29:41]} 56... Kf3 {[%clk
0:49:33]} 57. Nxh5 {[%clk 0:29:30]} 57... h6 {[%clk 0:49:49]} 58. Ng7 {[%clk
0:29:18]} 58... Bc3 {[%clk 0:49:53]} 59. Nf5 {[%clk 0:29:27]} 59... Bf6+ {[%clk
0:50:14]} 0-1

[Variant "Standard"]
[Site "Europe Echecs"]